Workbook

Sheet Говядина
C3: Подготовлено редакцией Правовой платформы «Бизнес-Инфо» (ООО «Профессиональные правовые системы»)
C5: ЖУРНАЛ
C6: учета и начисления естественной убыли по нормам при замораживании охлажденных, полностью оттаявших,
C7: домораживании частично оттаявших и при хранении мороженых мяса и субпродуктов
G8: на | J8: холодильниках
C10: Наименование | E10: говядина первой категории для передачи в производство
E11: (вид, категория, назначение)
O12: (в килограммах)
C13: Дата поступления (число, месяц, год) | D13: Номер приемного документа (товарно-транспортная накладная, акт закупки) | E13: Остаток на начало месяца | G13: Поступило мяса и субпродуктов | K13: Заморо-жено из охлаж-денного мяса | L13: Номер расходного документа (накладная на внутреннее перемещение) | M13: Отпущено мороже-ного мяса | N13: Остатки на конец суток
E14: без учета НЕУ | F14: за вычетом НЕУ | G14: всего | H14: в том числе с температурой, °С | N14: без вычета НЕУ | O14: за вычетом НЕУ
H15: минус 1,5 и выше | I15: от минус 1,6 до минус 7,9 | J15: минус 8 и ниже
C16: 1 | D16: 2 | E16: 3 | F16: 4 | G16: 5 | H16: 6 | I16: 7 | J16: 8 | K16: 9 | L16: 10 | M16: 11 | N16: 12 | O16: 13
C17: 2021-11-01 | E17: 12,300 | F17: 12,000 | G17: =SUM(H17:J17) -> 0 | O17: =F17+G17+K17-M17 -> 12,000
C18: 2021-11-02 | D18: 1754830 | G18: =SUM(H18:J18) -> 13,000 | I18: 3,000 | J18: 10,000 | N18: =O17+G18+K18-M18 -> 25,000
C19: 2021-11-03 | G19: 0 | L19: 104 | M19: 13,000 | N19: =N18+G19+K19-M19 -> 12,000
C20: 2021-11-04 | D20: 1754838 | G20: 2,000 | J20: 2,000 | N20: 14,000
C21: 2021-11-05 | G21: 0 | N21: 14,000
C22: 2021-11-06 | G22: 0 | N22: 14,000
C23: 2021-11-07 | G23: 0 | N23: 14,000
C24: 2021-11-08 | G24: 0 | N24: 14,000
C25: 2021-11-09 | D25: 1290908 | G25: 10,000 | H25: 6,000 | I25: 4,000 | L25: 108 | M25: 20,000 | N25: 4,000
C26: 2021-11-10 | D26: 1089743 | G26: 0 | K26: 5,000 | N26: 9,000
C27: 2021-11-11 | G27: 0 | L27: 110 | M27: 7,000 | N27: 2,000
C28: 2021-11-12 | G28: 0 | N28: 2,000
C29: 2021-11-13 | G29: 0 | N29: 2,000
C30: 2021-11-14 | G30: 0 | N30: 2,000
C31: 2021-11-15 | D31: 1758493 | G31: 3,100 | J31: 3,100 | N31: 5,100
C32: 2021-11-16 | G32: 0 | N32: 5,100
C33: 2021-11-17 | D33: 1290920 | G33: 7,000 | H33: 7,000 | L33: 115 | M33: 7,000 | N33: 5,100
C34: 2021-11-18 | G34: 0 | N34: 5,100
C35: 2021-11-19 | G35: 0 | N35: 5,100
C36: 2021-11-20 | G36: 0 | N36: 5,100
C37: 2021-11-21 | G37: 0 | N37: 5,100
C38: 2021-11-22 | D38: 1290955 | G38: 4,000 | I38: 4,000 | N38: 9,100
C39: 2021-11-23 | G39: 0 | N39: 9,100
C40: 2021-11-24 | G40: 0 | N40: 9,100
C41: 2021-11-25 | D41: 1089784 | G41: 0 | K41: 4,900 | N41: 14,000
C42: 2021-11-26 | D42: 1291025 | G42: 6,000 | H42: 6,000 | N42: 20,000
C43: 2021-11-27 | G43: 0 | N43: 20,000
C44: 2021-11-28 | G44: 0 | N44: 20,000
C45: 2021-11-29 | D45: 1758527 | G45: 5,000 | J45: 5,000 | N45: 25,000
C46: 2021-11-30 | G46: 0 | L46: 122 | M46: 7,000 | N46: =N45+G46+K46-M46 -> 18,000 | O46: =F58 -> 17,700
C47: Итого за месяц | G47: 50,100 | H47: =SUM(H17:H46) -> 19,000 | I47: =SUM(I17:I46) -> 11,000 | J47: =SUM(J17:J46) -> 20,100 | K47: =SUM(K17:K46) -> 9,900 | M47: =SUM(M17:M46) -> 54,000 | N47: =SUM(N17:N46) -> 308,000 | O47: =O46 -> 17,700
C49: Естественная убыль по нормам на замораживание и домораживание:
F50: % | H50: 0.79 | I50: 0.25 | J50: 0.10 | K50: 0.79
F51: кг | G51: =SUM(H51:K51) -> 275.91 | H51: =ROUND(H47*H50/100,2) -> 150.10 | I51: =ROUND(I47*I50/100,2) -> 27.50 | J51: 20.10 | K51: 78.21
C53: Естественная убыль по нормам при хранении | G53: мороженой говядины первой категории | N53: =ROUND((N47+M47-G51)*0.2%/30,2) -> 24.11 | O53: кг
C55: Всего естественной убыли при замораживании, домораживании и хранении
G56: мороженой говядины первой категории | K56: за ноябрь 2021 г. | N56: =G51+N53 -> 300.02 | O56: кг
C58: Остаток на | D58: 1 декабря 2021 г. | F58: =ROUND(N46-N56,0) -> 17,700 | G58: кг
C60: Бухгалтер | F60: А.Л.Липатова
D61: (подпись) | F61: (инициалы, фамилия)

Sheet Свинина
C3: Подготовлено редакцией Правовой платформы «Бизнес-Инфо» (ООО «Профессиональные правовые системы»)
C5: ЖУРНАЛ
C6: учета и начисления естественной убыли по нормам при замораживании охлажденных, полностью оттаявших,
C7: домораживании частично оттаявших и при хранении мороженых мяса и субпродуктов
G8: на | J8: холодильниках
C10: Наименование | E10: свинина первой категории для передачи в производство
E11: (вид, категория, назначение)
O12: (в килограммах)
C13: Дата поступления (число, месяц, год) | D13: Номер приемного документа (товарно-транспортная накладная, акт закупки) | E13: Остаток на начало месяца | G13: Поступило мяса и субпродуктов | K13: Заморо-жено из охлаж-денного мяса | L13: Номер расходного документа (накладная на внутреннее перемещение) | M13: Отпущено мороже-ного мяса | N13: Остатки на конец суток
E14: без учета НЕУ | F14: за вычетом НЕУ | G14: всего | H14: в том числе с температурой, °С | N14: без вычета НЕУ | O14: за вычетом НЕУ
H15: минус 1,5 и выше | I15: от минус 1,6 до минус 7,9 | J15: минус 8 и ниже
C16: 1 | D16: 2 | E16: 3 | F16: 4 | G16: 5 | H16: 6 | I16: 7 | J16: 8 | K16: 9 | L16: 10 | M16: 11 | N16: 12 | O16: 13
C17: 2021-11-01 | E17: 8,200 | F17: 8,000 | G17: =SUM(H17:J17) -> 0 | O17: =F17+G17+K17-M17 -> 8,000
C18: 2021-11-02 | D18: 1290876 | G18: =SUM(H18:J18) -> 8,700 | H18: 5,000 | I18: 3,700 | L18: 102 | M18: 7,700 | N18: =O17+G18+K18-M18 -> 9,000
C19: 2021-11-03 | D19: 1754835 | G19: 1,300 | J19: 1,300 | N19: =N18+G19+K19-M19 -> 10,300
C20: 2021-11-04 | G20: 0 | L20: 105 | M20: 1,000 | N20: 9,300
C21: 2021-11-05 | G21: 0 | N21: 9,300
C22: 2021-11-06 | G22: 0 | N22: 9,300
C23: 2021-11-07 | G23: 0 | N23: 9,300
C24: 2021-11-08 | G24: 0 | L24: 107 | M24: 9,000 | N24: 300
C25: 2021-11-09 | D25: 1089737 | G25: 0 | K25: 4,000 | L25: 109 | M25: 500 | N25: 3,800
C26: 2021-11-10 | D26: 1758409 | G26: 5,900 | I26: 1,900 | J26: 4,000 | N26: 9,700
C27: 2021-11-11 | G27: 0 | N27: 9,700
C28: 2021-11-12 | D28: 1290891 | G28: 1,100 | H28: 1,100 | L28: 112 | M28: 7,000 | N28: 3,800
C29: 2021-11-13 | G29: 0 | N29: 3,800
C30: 2021-11-14 | G30: 0 | N30: 3,800
C31: 2021-11-15 | G31: 0 | N31: 3,800
C32: 2021-11-16 | G32: 0 | N32: 3,800
C33: 2021-11-17 | D33: 1290922 | G33: 900 | I33: 900 | N33: 4,700
C34: 2021-11-18 | G34: 0 | N34: 4,700
C35: 2021-11-19 | D35: 1758466 | G35: 3,700 | J35: 3,700 | L35: 120 | M35: 6,200 | N35: 2,200
C36: 2021-11-20 | G36: 0 | N36: 2,200
C37: 2021-11-21 | G37: 0 | N37: 2,200
C38: 2021-11-22 | D38: 1290953 | G38: 2,700 | H38: 2,700 | N38: 4,900
C39: 2021-11-23 | G39: 0 | N39: 4,900
C40: 2021-11-24 | D40: 1758484 | G40: 2,000 | J40: 2,000 | N40: 6,900
C41: 2021-11-25 | D41: 1290985 | G41: 3,300 | H41: 3,300 | N41: 10,200
C42: 2021-11-26 | D42: 1291021 | G42: 1,400 | I42: 1,400 | N42: 11,600
C43: 2021-11-27 | G43: 0 | N43: 11,600
C44: 2021-11-28 | G44: 0 | N44: 11,600
C45: 2021-11-29 | D45: 1758528 | G45: 5,000 | J45: 5,000 | N45: 16,600
C46: 2021-11-30 | G46: 0 | L46: 122 | M46: 4,600 | N46: =N45+G46+K46-M46 -> 12,000 | O46: =F58 -> 11,800
C47: Итого за месяц | G47: 36,000 | H47: =SUM(H17:H46) -> 12,100 | I47: =SUM(I17:I46) -> 7,900 | J47: =SUM(J17:J46) -> 16,000 | K47: =SUM(K17:K46) -> 4,000 | M47: =SUM(M17:M46) -> 36,000 | N47: =SUM(N17:N46) -> 205,300 | O47: =O46 -> 11,800
C49: Естественная убыль по нормам на замораживание и домораживание:
F50: % | H50: 0.92 | I50: 0.25 | J50: 0.10 | K50: 0.92
F51: кг | G51: =SUM(H51:K51) -> 183.87 | H51: =ROUND(H47*H50/100,2) -> 111.32 | I51: =ROUND(I47*I50/100,2) -> 19.75 | J51: 16.00 | K51: 36.80
C53: Естественная убыль по нормам при хранении | G53: мороженой свинины первой категории | N53: =ROUND((N47+M47-G51)*0.2%/30,2) -> 16.07 | O53: кг
C55: Всего естественной убыли при замораживании, домораживании и хранении
G56: мороженой свинины первой категории | K56: за ноябрь 2021 г. | N56: =G51+N53 -> 199.94 | O56: кг
C58: Остаток на | D58: 1 декабря 2021 г. | F58: =ROUND(N46-N56,0) -> 11,800 | G58: кг
C60: Бухгалтер | F60: А.Л.Липатова
D61: (подпись) | F61: (инициалы, фамилия)
